Workbook

Sheet -- INSTRUCTIONS --

Sheet -- COVER SHEET --

Sheet Experiment Metadata
A2: EXPERIMENT:
B3: Title * | C3: Compression testing of homogenized Experimental Alloy 1 at room temperature
B4: Description * | C4: Compression testing of two homogenized Experimental Alloy 1 samples was performed at room temperature (RT) at 10-3 s-1 on cylindrical samples (10 mm in diameter and 12 mm in height). Given the low mechanical strength and strong basal texture, this alloy was not investigated further for this research program.
B5: Methods * | C5: Mechanical testing was performed on an Instron 5582 universal testing system at room temperature and 10-3 s-1 strain-rate. Strain was measured using a non-contact laser extensometer. All testing methods followed ASTM E9-09 for compression testing. For compression testing, samples were machined into cylindrical specimens measuring 10 mm in diameter and 12 mm in height.
A7: CONTRIBUTORS:
B8: Last Name * | C8: First Name * | D8: Email Address * | F8: Institution * | G8: Phone Number | H8: Mailing Address
B9: Manuel | C9: Michele, V. | D9: mmanuel@mse.ufl.edu | F9: University of Florida | G9: 352-846-3780 | H9: 549 Gale Lemerand Dr 100 Rhines Hall Gainesville Florida 32601
B10: Cuadrado-Castillo | C10: Wesley | D10: wcuadrado@ufl.edu | F10: University of Florida | G10: 787-239-7412 | H10: 549 Gale Lemerand Dr 104 Rhines Hall Gainesville Florida 32601
B12: +Add Row
B15: Name * | C15: Supplier/Provider * | E15: Description * | H15: Date Received * | I15: Material * | J15: Condition | L15: Location
A16: SOURCE MATERIAL: | B16: Experimental Alloy 1 | C16: POSCO | E16: Experimental Alloy 1 Mg-3Al-1Sn-0.3Zn-0.4Mn (wt.%) | H16: 2018-02-22 | I16: Metal | J16: Good | L16: Rhines B12
B21: +Add Row
B24: Name * | C24: Source Material | D24: Processing * | F24: Creation Date | G24: Specimen Diameter* | H24: Specimen Height* | I24: Area * | J24: Comments
A25: SPECIMENS: | C25: Name * | G25: mm | H25: mm | I25: m^2
B26: Experimental Alloy 1 - Homgenized - Run 1 | C26: AT31-0.3Zn-0.4Mn | D26: Homogenized at 420C for 12 hours | F26: 2018-05-05 | G26: 10 | H26: 12 | I26: =(PI()/4)*((G26/1000)^2) -> 7.853981634e-05
B27: Experimental Alloy 1 - Homgenized - Run 2 | C27: AT31-0.3Zn-0.4Mn | D27: Homogenized at 420C for 12 hours | F27: 2018-05-05 | G27: 10 | H27: 12 | I27: =(PI()/4)*((G27/1000)^2) -> 7.853981634e-05
B29: +Add Row
K31: TEST PARAMETERS
B32: Name * | C32: Specimen Name * | D32: Type of Test * | E32: Operator * | F32: Test Date * | G32: Instrument | K32: Property Name | L32: Property Name
G33: Name * | H33: Type * | I33: Location * | J33: Last Calibration Date * | K33: units | L33: units
B34: Experimental Alloy 1 - Homgenized - Run 1 | C34: AT31-0.3Zn-0.4Mn | D34: Compression | E34: Wesley Cuadrado | F34: 2018-05-12 | G34: Instron | H34: 5582 | I34: Rhines 131 | J34: 2010 | K34: Room Temperature | L34: 10-3
B35: Experimental Alloy 1 - Homgenized - Run 2 | C35: AT31-0.3Zn-0.4Mn | D35: Compression | E35: Wesley Cuadrado | F35: 2018-05-12 | G35: Instron | H35: 5582 | I35: Rhines 131 | J35: 2010 | K35: Room Temperature | L35: 10-3
A36: TESTS:
B38: +Add Row

Sheet Results
A2: MAJOR CONCLUSIONS *:
B3: Compression testing of two homogenized Experimental Alloy 1 samples were performed at room temperature (RT) at 10-3 s-1on cylindrical samples (10 mm in diameter and 12 mm in height). Given the low mechanical strength and strong basal texture, this alloy was not investigated further for this research program.
A5: RESULTS SUMMARY:
B6: Field Name: * | C6: True Strain | D6: True Stress | E6: True Strain | F6: True Stress | G6: +Add Column
B7: Units: * | C7: mm/mm | D7: M Pa | E7: mm/mm | F7: M Pa
B8: Description: * | C8: Experimental Alloy 1 - Homogenized - Run 1 | D8: Experimental Alloy 1 - Homogenized - Run 1 | E8: Experimental Alloy 1 - Homogenized - Run 2 | F8: Experimental Alloy 1 - Homogenized - Run 2
B9: Valid Min: | C9: =MIN(C12:C1753) -> 0 | D9: =MIN(D12:D1753) -> 0 | E9: =MIN(E12:E2212) -> 0 | F9: =MIN(F12:F2212) -> 0
B10: Valid Max: | C10: =MAX(C13:C1754) -> 0.1991085151 | D10: =MAX(D13:D1754) -> 290.5561371 | E10: =MAX(E13:E1754) -> 0.1605678085 | F10: =MAX(F13:F1754) -> 277.1540588
B11: Missing Value:
C12: 0 | D12: 0 | E12: 0 | F12: 0
C13: 0.0001259675396 | D13: 0.1257695542 | E13: 0.0001056929437 | F13: 0.1777965686
C14: 0.0002664082114 | D14: 0.2619885495 | E14: 0.0002049422332 | F14: 0.3556284314
C15: 0.0004001428976 | D15: 0.4024992148 | E15: 0.0003096946867 | F15: 0.5334985294
C16: 0.0005394308467 | D16: 0.5381037399 | E16: 0.0003946831318 | F16: 0.7113918301
C17: 0.0006731290277 | D17: 0.6917614032 | E17: 0.0004796643544 | F17: 0.8893153595
C18: 0.0008056954072 | D18: 0.8749538174 | E18: 0.0005678534466 | F18: 1.067272549
C19: 0.0009193097467 | D19: 1.03189458 | E19: 0.0006661383747 | F19: 1.245273693
C20: 0.0010262291 | D20: 1.216599726 | E20: 0.0007763529718 | F20: 1.423326797
C21: 0.00113870483 | D21: 1.382389935 | E21: 0.0008856371194 | F21: 1.601417647
C22: 0.001258961913 | D22: 1.57813768 | E22: 0.0009958275285 | F22: 1.77954902
C23: 0.001391450658 | D23: 1.790964087 | E23: 0.001105087695 | F23: 1.95771781
A24: PLOTS: | C24: 0.00153171373 | D24: 2.02243984 | E24: 0.001209745903 | F24: 2.135915686
C25: 0.001665279319 | D25: 2.252373629 | E25: 0.001297870637 | F25: 2.314112582
C26: 0.001811068056 | D26: 2.498617377 | E26: 0.00138506976 | F26: 2.492338562
C27: 0.001944596341 | D27: 2.722853234 | E27: 0.001473179045 | F27: 2.670598039
C28: 0.00205696883 | D28: 2.926691235 | E28: 0.001561280567 | F28: 2.848888889
C29: 0.002163766621 | D29: 3.103427685 | E29: 0.001670478973 | F29: 3.027275
C30: 0.002277226777 | D30: 3.296794872 | E30: 0.001780582939 | F30: 3.205702941
C31: 0.002396234873 | D31: 3.510110495 | E31: 0.001889757401 | F31: 3.384166993
C32: 0.002529685049 | D32: 3.742855739 | E32: 0.001999837227 | F32: 3.562673203
C33: 0.002668676715 | D33: 4.003089613 | E33: 0.002104401839 | F33: 3.741198039
C34: 0.002808760766 | D34: 4.266814054 | E34: 0.002202535871 | F34: 3.919734967
C35: 0.002947713651 | D35: 4.53534602 | E35: 0.002296075236 | F35: 4.098288072
C36: 0.003081090257 | D36: 4.782864133 | E36: 0.002373101085 | F36: 4.276803922
C37: 0.003201113996 | D37: 5.033253717 | E37: 0.002460206503 | F37: 4.455392157
C38: 0.003306678524 | D38: 5.245101038 | E38: 0.00256472299 | F38: 4.634092157
C39: 0.003413342939 | D39: 5.450141261 | E39: 0.002673811883 | F39: 4.812851471
C40: 0.003533326808 | D40: 5.689785779 | E40: 0.002783805439 | F40: 4.991654248
C41: 0.003658850076 | D41: 5.949185465 | E41: 0.002893786898 | F41: 5.170496242
C42: 0.003798795498 | D42: 6.233720641 | E42: 0.002997341715 | F42: 5.349343137
C43: 0.003937610892 | D43: 6.53345335 | E43: 0.003101802081 | F43: 5.528232026
C44: 0.00407751731 | D44: 6.803596683 | E44: 0.003199838288 | F44: 5.707121569
C45: 0.00420963318 | D45: 7.09456827 | E45: 0.003287787827 | F45: 5.885986765
C46: 0.004336181594 | D46: 7.359189511 | E46: 0.003370233495 | F46: 6.06485
C47: 0.00444273626 | D47: 7.584574985 | E47: 0.003462747763 | F47: 6.243805556
C48: 0.004548169805 | D48: 7.806189697 | E48: 0.003561664442 | F48: 6.422835294
C49: 0.004668017599 | D49: 8.038486044 | E49: 0.003671560389 | F49: 6.601972876
C50: 0.004794508022 | D50: 8.312894671 | E50: 0.003780528611 | F50: 6.781143464
C51: 0.004933185275 | D51: 8.597857249 | E51: 0.00389040051 | F51: 6.960359314
C52: 0.005072952485 | D52: 8.914684017 | E52: 0.003999344889 | F52: 7.139607843
C53: 0.005211591131 | D53: 9.182042359 | E53: 0.004103700644 | F53: 7.318861765
C54: 0.005351319438 | D54: 9.48618488 | E54: 0.004191570728 | F54: 7.498029412
C55: 0.005476614727 | D55: 9.781073014 | E55: 0.004273026722 | F55: 7.677179248
C56: 0.00558304795 | D56: 10.00698844 | E56: 0.004360881929 | F56: 7.856408497
C57: 0.005689469847 | D57: 10.22794713 | E57: 0.00445421963 | F57: 8.035713235
C58: 0.005801422326 | D58: 10.4565408 | E58: 0.004563102606 | F58: 8.215179085
C59: 0.005927769475 | D59: 10.71844143 | E59: 0.00467288856 | F59: 8.5398125
C60: 0.00606074923 | D60: 11.03529343 | E60: 0.004781747729 | F60: 9.565243578
C61: 0.006199251006 | D61: 11.30059603 | E61: 0.004891509683 | F61: 9.599541594
C62: 0.006338841386 | D62: 11.59185771 | E62: 0.004995772381 | F62: 10.59201168
C63: 0.006470658856 | D63: 11.8911432 | E63: 0.005093623095 | F63: 10.76650306
C64: 0.006603566442 | D64: 12.19731317 | E64: 0.005181406242 | F64: 10.90146895
C65: 0.006722060811 | D65: 12.45733804 | E65: 0.005263695943 | F65: 11.06148364
C66: 0.006821718101 | D66: 12.68789923 | E66: 0.00535054995 | F66: 11.2197071
C67: 0.006934651024 | D67: 12.94745573 | E67: 0.005454764801 | F67: 11.40663333
C68: 0.00705310617 | D68: 13.21570169 | E68: 0.005563538894 | F68: 11.62186583
C69: 0.007192577419 | D69: 13.51309637 | E69: 0.005673215075 | F69: 11.81188222
C70: 0.007332029219 | D70: 13.83324803 | E70: 0.005782879229 | F70: 12.00482679
C71: 0.007470355045 | D71: 14.15424604 | E71: 0.005886135313 | F71: 12.21904484
C72: 0.007603129839 | D72: 14.47390541 | E72: 0.005990294366 | F72: 12.41946167
C73: 0.00773478077 | D73: 14.75758509 | E73: 0.006082566569 | F73: 12.58498282
C74: 0.007854247285 | D74: 15.03987087 | E74: 0.006164782151 | F74: 12.73388745
C75: 0.007960427764 | D75: 15.26947158 | E75: 0.006252471323 | F75: 12.89352275
C76: 0.008072126306 | D76: 15.52278991 | E76: 0.006344719338 | F76: 13.06871799
C77: 0.008184918113 | D77: 15.7848465 | E77: 0.006448830639 | F77: 13.27692149
C78: 0.008316492478 | D78: 16.12886694 | E78: 0.006558409773 | F78: 13.46962439
C79: 0.008455787645 | D79: 16.45469942 | E79: 0.006667063891 | F79: 13.68596921
C80: 0.008595063411 | D80: 16.7867628 | E80: 0.006776619115 | F80: 13.88970002
C81: 0.008726583826 | D81: 17.10946548 | E81: 0.006879772646 | F81: 14.09240243
C82: 0.008865821885 | D82: 17.42680826 | E82: 0.00698382826 | F82: 14.27516004
C83: 0.008977419347 | D83: 17.74772896 | E83: 0.007071445642 | F83: 14.43708259
C84: 0.009090109097 | D84: 17.98775401 | E84: 0.0071526674 | F84: 14.58608385
C85: 0.009196158439 | D85: 18.21785255 | E85: 0.007245744898 | F85: 14.77941695
C86: 0.009314346016 | D86: 18.53074924 | E86: 0.007343375708 | F86: 14.96364161
C87: 0.009446876216 | D87: 18.86787091 | E87: 0.007447383095 | F87: 15.17438196
C88: 0.009584909834 | D88: 19.21091424 | E88: 0.007556852869 | F88: 15.38635829
C89: 0.009717404184 | D89: 19.52590488 | E89: 0.007665398562 | F89: 15.58101487
C90: 0.00985650436 | D90: 19.85180845 | E90: 0.007774844474 | F90: 15.7916337
C91: 0.009987858985 | D91: 20.2003016 | E91: 0.007883366509 | F91: 15.98781653
C92: 0.01011367833 | D92: 20.53891077 | E92: 0.007970905115 | F92: 16.18037121
C93: 0.01021851569 | D93: 20.79183457 | E93: 0.008052965599 | F93: 16.33670312
C94: 0.01032444544 | D94: 21.06200856 | E94: 0.008139577694 | F94: 16.5064015
C95: 0.010443603 | D95: 21.33416906 | E95: 0.008232563382 | F95: 16.70736142
C96: 0.01057488053 | D96: 21.66832445 | E96: 0.008336478332 | F96: 16.88858204
C97: 0.01071386149 | D97: 22.03919087 | E97: 0.008444939438 | F97: 17.12489291
C98: 0.01084510355 | D98: 22.36289993 | E98: 0.00855430007 | F98: 17.33794527
C99: 0.01098404697 | D99: 22.71684796 | E99: 0.008662737555 | F99: 17.5533189
C100: 0.01111525358 | D100: 23.06739446 | E100: 0.008772074372 | F100: 17.76465138
C101: 0.01124093116 | D101: 23.38829801 | E101: 0.008870467288 | F101: 17.98213737
C102: 0.01135336614 | D102: 23.69368181 | E102: 0.008951543064 | F102: 18.14330313
C103: 0.01145807362 | D103: 23.95459019 | E103: 0.009038988217 | F103: 18.30677107
C104: 0.01157048419 | D104: 24.25345333 | E104: 0.009126425724 | F104: 18.49192515
C105: 0.01169610458 | D105: 24.5946051 | E105: 0.009223873104 | F105: 18.67389828
C106: 0.0118338281 | D106: 24.96133961 | E106: 0.009327685098 | F106: 18.89277659
C107: 0.01196602483 | D107: 25.32577171 | E107: 0.009441501655 | F107: 19.11612317
C108: 0.01210371118 | D108: 25.69065977 | E108: 0.009556215634 | F108: 19.34375551
C109: 0.01224247984 | D109: 26.04213474 | E109: 0.009659993136 | F109: 19.56714955
C110: 0.01236691473 | D110: 26.38142394 | E110: 0.00976284968 | F110: 19.77768186
C111: 0.01247922318 | D111: 26.7016135 | E111: 0.009855684557 | F111: 19.96225352
C112: 0.01258491374 | D112: 26.97282587 | E112: 0.009936680498 | F112: 20.12897191
C113: 0.01269609695 | D113: 27.27222771 | E113: 0.01002403955 | F113: 20.30678025
C114: 0.01281497226 | D114: 27.58945967 | E114: 0.01011139097 | F114: 20.50137925
C115: 0.01295364226 | D115: 27.99245903 | E115: 0.0102142011 | F115: 20.71925016
C116: 0.01309119271 | D116: 28.36171977 | E116: 0.01032336843 | F116: 20.95910534
C117: 0.01322982441 | D117: 28.73883028 | E117: 0.01043252384 | F117: 21.17473692
C118: 0.01336733688 | D118: 29.11241186 | E118: 0.01054075786 | F118: 21.39876965
C119: 0.01349933106 | D119: 29.46219341 | E119: 0.01064988954 | F119: 21.62235647
C120: 0.01361151241 | D120: 29.76312191 | E120: 0.01075264432 | F120: 21.81975804
C121: 0.01371598373 | D121: 30.06735031 | E121: 0.01083993213 | F121: 22.01427627
C122: 0.01382154366 | D122: 30.36588031 | E122: 0.01092175753 | F122: 22.1827144
C123: 0.01393918587 | D123: 30.69552613 | E123: 0.01101357583 | F123: 22.37720776
C124: 0.01407770007 | D124: 31.09828702 | E124: 0.01110629468 | F124: 22.5780875
C125: 0.01420960053 | D125: 31.45597089 | E125: 0.01120991145 | F125: 22.80712983
C126: 0.01434697834 | D126: 31.81948425 | E126: 0.01131806136 | F126: 23.03341841
C127: 0.01448543607 | D127: 32.22766552 | E127: 0.01142710826 | F127: 23.26224784
C128: 0.01461618411 | D128: 32.54514776 | E128: 0.01153523468 | F128: 23.49534595
C129: 0.0147348314 | D129: 32.8896456 | E129: 0.0116442579 | F129: 23.70330046
C130: 0.01484028384 | D130: 33.19030016 | E130: 0.01173691829 | F130: 23.90605189
C131: 0.01494462687 | D131: 33.50204015 | E131: 0.01182321191 | F131: 24.09457577
C132: 0.0150632352 | D132: 33.82617229 | E132: 0.01191040632 | F132: 24.25918045
C133: 0.01519390772 | D133: 34.20535169 | E133: 0.01199759313 | F133: 24.45192534
C134: 0.01533224825 | D134: 34.59439019 | E134: 0.01210020953 | F134: 24.64586389
C135: 0.01547056964 | D135: 34.95641098 | E135: 0.01220917117 | F135: 24.91108614
C136: 0.01560777434 | D136: 35.35281496 | E136: 0.01231721307 | F136: 25.13158189
C137: 0.01573947315 | D137: 35.70564121 | E137: 0.01242070446 | F137: 25.37025538
C138: 0.01585688996 | D138: 36.08819734 | E138: 0.01252327745 | F138: 25.59392966
C139: 0.01596880717 | D139: 36.399402 | E139: 0.01262674751 | F139: 25.83330321
C140: 0.01607412957 | D140: 36.67927743 | E140: 0.01271931691 | F140: 26.01538029
C141: 0.01619150709 | D141: 37.01732546 | E141: 0.01280008125 | F141: 26.1828244
C142: 0.01631654836 | D142: 37.38629875 | E142: 0.01288719053 | F142: 26.3641637
C143: 0.01645363705 | D143: 37.77852672 | E143: 0.01297973582 | F143: 26.56866238
C144: 0.01658522451 | D144: 38.14920164 | E144: 0.01308225149 | F144: 26.80141463
C145: 0.01672337271 | D145: 38.55808179 | E145: 0.01319654861 | F145: 27.03854836
C146: 0.01685382849 | D146: 38.93201693 | E146: 0.01329904206 | F146: 27.27534144
C147: 0.01697878697 | D147: 39.29437621 | E147: 0.01340787316 | F147: 27.50228347
C148: 0.01708948276 | D148: 39.59372423 | E148: 0.01351669242 | F148: 27.73425833
C149: 0.0171946872 | D149: 39.88523598 | E149: 0.01361371293 | F149: 27.95749814
C150: 0.01730645479 | D150: 40.19894386 | E150: 0.01370075137 | F150: 28.1363589
C151: 0.01743026117 | D151: 40.54974718 | E151: 0.01378234302 | F151: 28.32593834
C152: 0.01756829269 | D152: 40.94407841 | E152: 0.01387389906 | F152: 28.51787453
C153: 0.01770520989 | D153: 41.32926098 | E153: 0.0139717913 | F153: 28.7414949
C154: 0.01784320347 | D154: 41.69551103 | E154: 0.01407964294 | F154: 28.98685227
C155: 0.01797460822 | D155: 42.06567795 | E155: 0.01418838913 | F155: 29.23303361
C156: 0.01809833191 | D156: 42.4188758 | E156: 0.01429712349 | F156: 29.4507912
C157: 0.01821656679 | D157: 42.74747362 | E157: 0.0143995042 | F157: 29.69356103
C158: 0.01831399059 | D158: 43.01082948 | E158: 0.01450278032 | F158: 29.93326977
C159: 0.01842563316 | D159: 43.31056405 | E159: 0.01459427043 | F159: 30.12294075
C160: 0.0185503954 | D160: 43.64479507 | E160: 0.01468122356 | F160: 30.3015311
C161: 0.01868717821 | D161: 44.01716571 | E161: 0.01476273526 | F161: 30.4952506
C162: 0.01882503636 | D162: 44.38795596 | E162: 0.01485420159 | F162: 30.70020427
C163: 0.01896178161 | D163: 44.76369493 | E163: 0.01495743076 | F163: 30.95084227
C164: 0.01909303947 | D164: 45.1125524 | E164: 0.01506608153 | F164: 31.18609773
C165: 0.01921771847 | D165: 45.44604661 | E165: 0.01517381523 | F165: 31.42431581
C166: 0.01933472761 | D166: 45.7524332 | E166: 0.01527701141 | F166: 31.66204867
C167: 0.01943969612 | D167: 46.04232524 | E167: 0.01538472239 | F167: 31.90339545
C168: 0.01954356036 | D168: 46.32238309 | E168: 0.01548789681 | F168: 32.13555156
C169: 0.01966818321 | D169: 46.62723626 | E169: 0.01557477228 | F169: 32.31981281
C170: 0.01979934839 | D170: 46.99247684 | E170: 0.01566073537 | F170: 32.50293209
C171: 0.01993596048 | D171: 47.35928259 | E171: 0.01574759582 | F171: 32.69904515
C172: 0.02006709054 | D172: 47.70618562 | E172: 0.01583987679 | F172: 32.91204746
C173: 0.02020366607 | D173: 48.0658266 | E173: 0.01594752716 | F173: 33.18176748
C174: 0.02033476103 | D174: 48.38884449 | E174: 0.01605607042 | F174: 33.42212701
C175: 0.02045928532 | D175: 48.70243854 | E175: 0.01616369752 | F175: 33.66538327
C176: 0.02056304373 | D176: 48.95842738 | E176: 0.01627221732 | F176: 33.89653365
C177: 0.02066788339 | D177: 49.22522061 | E177: 0.01637530022 | F177: 34.1318021
C178: 0.02077817158 | D178: 49.50592098 | E178: 0.0164720438 | F178: 34.35240605
C179: 0.02091574179 | D179: 49.8303942 | E179: 0.01655340966 | F179: 34.54268934
C180: 0.02105329307 | D180: 50.19194094 | E180: 0.01663386495 | F180: 34.714035
C181: 0.02118973398 | D181: 50.49702401 | E181: 0.01672606417 | F181: 34.93037607
C182: 0.02132069975 | D182: 50.8100582 | E182: 0.01682367762 | F182: 35.16051539
C183: 0.02145710418 | D183: 51.1241458 | E183: 0.01693664424 | F183: 35.44225053
C184: 0.02157494263 | D184: 51.40605451 | E184: 0.0170450802 | F184: 35.68867744
C185: 0.02167967626 | D185: 51.64265876 | E185: 0.01715260091 | F185: 35.93566827
C186: 0.02178330812 | D186: 51.87162869 | E186: 0.0172555931 | F186: 36.17324617
C187: 0.02189456406 | D187: 52.14384091 | E187: 0.01735315487 | F187: 36.41956482
C188: 0.02202434701 | D188: 52.46418757 | E188: 0.01744438458 | F188: 36.61398056
C189: 0.0221617459 | D189: 52.78756963 | E189: 0.01752567137 | F189: 36.80507409
C190: 0.02229912591 | D190: 53.07766105 | E190: 0.01761778841 | F190: 37.00616174
C191: 0.02243539696 | D191: 53.38558086 | E191: 0.01770899398 | F191: 37.23579212
C192: 0.02256619969 | D192: 53.67682534 | E192: 0.01781192889 | F192: 37.49195443
C193: 0.02268281771 | D193: 53.96081135 | E193: 0.01792478394 | F193: 37.75275064
C194: 0.02279397362 | D194: 54.19392127 | E194: 0.01802769664 | F194: 38.00117323
C195: 0.02289857966 | D195: 54.40519831 | E195: 0.01814142993 | F195: 38.25312647
C196: 0.02301515892 | D196: 54.6561574 | E196: 0.01824341784 | F196: 38.48259251
C197: 0.02313934991 | D197: 54.94414977 | E197: 0.01834088329 | F197: 38.69799116
C198: 0.02327550651 | D198: 55.24487941 | E198: 0.01842660893 | F198: 38.87907235
C199: 0.02340619942 | D199: 55.53059622 | E199: 0.01850781592 | F199: 39.07085744
C200: 0.02354340858 | D200: 55.81674069 | E200: 0.01859442944 | F200: 39.27633703
C201: 0.02367297773 | D201: 56.09262574 | E201: 0.01869095858 | F201: 39.50791852
C202: 0.0238036187 | D202: 56.35956456 | E202: 0.01879920449 | F202: 39.76673334
... 2010 more rows

Sheet -- TEST DATA --

Sheet Sample Test Data
A1: Test * | B1: Compression testing of homogenized Experimenatl alloy at room temperature -10-3s-1
A3: SUMMARY
B4: Field Name: * | C4: Yield Point , 0.2% Offset (YS) | D4: Ultimate Tensie Stress (UTS) | E4: Elastic Modulus (E) | F4: Strain to Failure | G4: Yield Point , 0.2% Offset (YS) | H4: Ultimate Tensile Stress (UTS) | I4: Elastic Modulus (E) | J4: Strain to Failure | K4: +Add Column | L4: Specimen Dimensions
B5: Units: * | C5: M Pa | D5: M Pa | E5: G Pa | F5: mm/mm | G5: M Pa | H5: M Pa | I5: G Pa | J5: mm/mm | L5: Dimension : Anvil height | M5: 10.88 | N5: mm
B6: Description: * | C6: Experimental Alloy 1 - Homogenized - Run 1 | D6: Experimental Alloy 1 - Homogenized - Run 1 | E6: Experimental Alloy 1 - Homogenized - Run 1 | F6: Experimental Alloy 1 - Homogenized - Run 1 | G6: Experimental Alloy 1 - Homogenized - Run 2 | H6: Experimental Alloy 1 - Homogenized - Run 2 | I6: Experimental Alloy 1 - Homogenized - Run 2 | J6: Experimental Alloy 1 - Homogenized - Run 2 | L6: Dimension : Diameter | M6: 9.97 | N6: mm
C7: 75 | D7: 284 | E7: 42 | F7: 0.22 | G7: 65 | H7: 272 | I7: 42 | J7: 0.22 | L7: Area | M7: =(PI()/4*(M6/1000)^2) -> 7.80692843e-05 | N7: m^2
C13: +Add Row
A15: TEST DATA
C16: RAW | K16: +Add Column | L16: CALCULATED | R16: +Add Column
B17: Field Name: * | C17: Time | D17: Extension | E17: Load | F17: Strain | G17: Time | H17: Extension | I17: Load | J17: Strain | L17: Stress | M17: True Strain | N17: True Stress | O17: Stress | P17: True Strain | Q17: True Stress
B18: Units: * | C18: s | D18: mm | E18: N | F18: mm/mm | G18: s | H18: mm | I18: N | J18: mm/mm | L18: M Pa | M18: mm/mm | N18: M Pa | O18: M Pa | P18: mm/mm | Q18: M Pa
B19: Description: * | C19: Experimental Alloy 1 - Homogenized - Run 1 | D19: Experimental Alloy 1 - Homogenized - Run 1 | E19: Experimental Alloy 1 - Homogenized - Run 1 | F19: Experimental Alloy 1 - Homogenized - Run 1 | G19: Experimental Alloy 1 - Homogenized - Run 2 | H19: Experimental Alloy 1 - Homogenized - Run 2 | I19: Experimental Alloy 1 - Homogenized - Run 2 | J19: Experimental Alloy 1 - Homogenized - Run 2 | L19: Experimental Alloy 1 - Homogenized - Run 1 | M19: Experimental Alloy 1 - Homogenized - Run 1 | N19: Experimental Alloy 1 - Homogenized - Run 1 | O19: Experimental Alloy 1 - Homogenized - Run 2 | P19: Experimental Alloy 1 - Homogenized - Run 2 | Q19: Experimental Alloy 1 - Homogenized - Run 2
B20: Valid Min: | C20: =MIN(C23:C1764) -> 0 | D20: =MIN(D23:D1764) -> 0 | E20: 0 | F20: 0 | G20: =MIN(G23:G2223) -> 0 | H20: =MIN(H23:H2223) -> 0 | I20: 0 | J20: 0 | L20: =MIN(L23:L1764) -> 0 | M20: =MIN(M23:M1764) -> 0 | N20: 0 | O20: 0 | P20: =MIN(P23:P2223) -> 0 | Q20: =MIN(Q23:Q2223) -> 0
B21: Valid Max: | C21: =MAX(C23:C1764) -> 174.1 | D21: =MAX(D23:D1764) -> 2.397020468 | E21: 18588.25072 | F21: 0.2203143813 | G21: =MAX(G23:G2223) -> 220.00002 | H21: =MAX(H23:H2223) -> 2.39369 | I21: 19414.03174 | J21: 0.2200082721 | L21: =MAX(L23:L1764) -> 238.0994124 | M21: =MAX(M23:M1764) -> 0.1991085151 | N21: 290.5561371 | O21: 236.0828464 | P21: =MAX(P23:P2223) -> 0.1988576391 | Q21: =MAX(Q23:Q2223) -> 300.4030822
B22: Missing Value:
C23: 0 | D23: 0 | E23: 0 | F23: 0 | G23: 0 | H23: 0 | I23: 0 | J23: 0 | L23: =E23/$M$7*(10^-6) -> 0 | M23: =LN(1+F23) -> 0 | N23: =L23*(1+F23) -> 0 | O23: =I23/$M$7*(10^-6) -> 0 | P23: =LN(1+J23) -> 0 | Q23: =O23*(1+J23) -> 0
C24: 0.1 | D24: 0.001370613155 | E24: 9.81750232 | F24: 0.0001259754738 | G24: 0.1 | H24: 0.00115 | I24: 13.87898388 | J24: 0.0001056985294 | L24: 0.1257537123 | M24: =LN(1+F24) -> 0.0001259675396 | N24: =L24*(1+F24) -> 0.1257695542 | O24: 0.1777777778 | P24: 0.0001056929437 | Q24: 0.1777965686
C25: 0.2 | D25: 0.002898907469 | E25: 20.44781036 | F25: 0.0002664437012 | G25: 0.2 | H25: 0.00223 | I25: 27.75796775 | J25: 0.0002049632353 | L25: 0.2619187629 | M25: 0.0002664082114 | N25: 0.2619885495 | O25: 0.3555555556 | P25: 0.0002049422332 | Q25: 0.3556284314
C26: 0.3 | D26: 0.004354425864 | E26: 31.41025453 | F26: 0.0004002229654 | G26: 0.3 | H26: 0.00337 | I26: 41.63695163 | J26: 0.0003097426471 | L26: 0.4023381898 | M26: 0.0004001428976 | N26: 0.4024992148 | O26: 0.5333333333 | P26: 0.0003096946867 | Q26: 0.5334985294
C27: 0.4 | D27: 0.005870590858 | E27: 41.98671881 | F27: 0.0005395763657 | G27: 0.4 | H27: 0.004295 | I27: 55.5159355 | J27: 0.0003947610294 | L27: 0.5378135484 | M27: 0.0005394308467 | N27: 0.5381037399 | O27: 0.7111111111 | P27: 0.0003946831318 | Q27: 0.7113918301
C28: 0.5 | D28: 0.007326109253 | E28: 53.96897734 | F28: 0.0006733556299 | G28: 0.5 | H28: 0.00522 | I28: 69.39491938 | J28: 0.0004797794118 | L28: 0.6912959152 | M28: 0.0006731290277 | N28: 0.6917614032 | O28: 0.8888888889 | P28: 0.0004796643544 | Q28: 0.8893153595
C29: 0.6 | D29: 0.008769498328 | E29: 68.25200583 | F29: 0.0008060200669 | G29: 0.6 | H29: 0.00618 | I29: 83.27390325 | J29: 0.0005680147059 | L29: 0.874249155 | M29: 0.0008056954072 | N29: 0.8749538174 | O29: 1.066666667 | P29: 0.0005678534466 | Q29: 1.067272549
C30: 0.7 | D30: 0.01000668896 | E30: 80.4852464 | F30: 0.0009197324415 | G30: 0.7 | H30: 0.00725 | I30: 97.15288713 | J30: 0.0006663602941 | L30: 1.030946385 | M30: 0.0009193097467 | N30: 1.03189458 | O30: 1.244444444 | P30: 0.0006661383747 | Q30: 1.245273693
C31: 0.8 | D31: 0.01117110368 | E31: 94.88164958 | F31: 0.001026755853 | G31: 0.8 | H31: 0.00845 | I31: 111.031871 | J31: 0.0007766544118 | L31: 1.215351856 | M31: 0.0010262291 | N31: 1.216599726 | O31: 1.422222222 | P31: 0.0007763529718 | Q31: 1.423326797
C32: 0.9 | D32: 0.01239616499 | E32: 107.7993712 | F32: 0.0011393534 | G32: 0.9 | H32: 0.00964 | I32: 124.9108549 | J32: 0.0008860294118 | L32: 1.380816696 | M32: 0.00113870483 | N32: 1.382389935 | O32: 1.6 | P32: 0.0008856371194 | Q32: 1.601417647
C33: 1 | D33: 0.01370613155 | E33: 123.0490675 | F33: 0.001259754738 | G33: 1 | H33: 0.01084 | I33: 138.7898388 | J33: 0.0009963235294 | L33: 1.576152115 | M33: 0.001258961913 | N33: 1.57813768 | O33: 1.777777778 | P33: 0.0009958275285 | Q33: 1.77954902
C34: 1.1 | D34: 0.01514952062 | E34: 139.6248681 | F34: 0.001392419175 | G34: 1.1 | H34: 0.01203 | I34: 152.6688226 | J34: 0.001105698529 | L34: 1.788473782 | M34: 0.001391450658 | N34: 1.790964087 | O34: 1.955555556 | P34: 0.001105087695 | Q34: 1.95771781
C35: 1.2 | D35: 0.01667781494 | E35: 157.648773 | F35: 0.001532887402 | G35: 1.2 | H35: 0.01317 | I35: 166.5478065 | J35: 0.001210477941 | L35: 2.019344412 | M35: 0.00153171373 | N35: 2.02243984 | O35: 2.133333333 | P35: 0.001209745903 | Q35: 2.135915686
C36: 1.3 | D36: 0.01813333333 | E36: 175.5486162 | F36: 0.001666666667 | G36: 1.3 | H36: 0.01413 | I36: 180.4267904 | J36: 0.001298713235 | L36: 2.248625919 | M36: 0.001665279319 | N36: 2.252373629 | O36: 2.311111111 | P36: 0.001297870637 | Q36: 2.314112582
C37: 1.4 | D37: 0.01972227425 | E37: 194.7123136 | F37: 0.00181270903 | G37: 1.4 | H37: 0.01508 | I37: 194.3057743 | J37: 0.001386029412 | L37: 2.494096306 | M37: 0.001811068056 | N37: 2.498617377 | O37: 2.488888889 | P37: 0.00138506976 | Q37: 2.492338562
C38: 1.5 | D38: 0.02117779264 | E38: 212.1582397 | F38: 0.001946488294 | G38: 1.5 | H38: 0.01604 | I38: 208.1847581 | J38: 0.001474264706 | L38: 2.717563529 | M38: 0.001944596341 | N38: 2.722853234 | O38: 2.666666667 | P38: 0.001473179045 | Q38: 2.670598039
C39: 1.6 | D39: 0.02240285396 | E39: 228.0151873 | F39: 0.002059085842 | G39: 1.6 | H39: 0.017 | I39: 222.063742 | J39: 0.0015625 | L39: 2.92067731 | M39: 0.00205696883 | N39: 2.926691235 | O39: 2.844444444 | P39: 0.001561280567 | Q39: 2.848888889
C40: 1.7 | D40: 0.02356726867 | E40: 241.7587025 | F40: 0.002166109253 | G40: 1.7 | H40: 0.01819 | I40: 235.9427259 | J40: 0.001671875 | L40: 3.096719852 | M40: 0.002163766621 | N40: 3.103427685 | O40: 3.022222222 | P40: 0.001670478973 | Q40: 3.027275
C41: 1.8 | D41: 0.02480445931 | E41: 256.792974 | F41: 0.002279821628 | G41: 1.8 | H41: 0.01939 | I41: 249.8217098 | J41: 0.001782169118 | L41: 3.289295864 | M41: 0.002277226777 | N41: 3.296794872 | O41: 3.2 | P41: 0.001780582939 | Q41: 3.205702941
C42: 1.9 | D42: 0.02610229654 | E42: 273.3759557 | F42: 0.002399108138 | G42: 1.9 | H42: 0.02058 | I42: 263.7006936 | J42: 0.001891544118 | L42: 3.501709515 | M42: 0.002396234873 | N42: 3.510110495 | O42: 3.377777778 | P42: 0.001889757401 | Q42: 3.384166993
C43: 2 | D43: 0.02755781494 | E43: 291.4638237 | F43: 0.002532887402 | G43: 2 | H43: 0.02178 | I43: 277.5796775 | J43: 0.002001838235 | L43: 3.733399459 | M43: 0.002529685049 | N43: 3.742855739 | O43: 3.555555556 | P43: 0.001999837227 | Q43: 3.562673203
C44: 2.1 | D44: 0.02907397993 | E44: 311.6854425 | F44: 0.002672240803 | G44: 2.1 | H44: 0.02292 | I44: 291.4586614 | J44: 0.002106617647 | L44: 3.992420903 | M44: 0.002668676715 | N44: 4.003089613 | O44: 3.733333333 | P44: 0.002104401839 | Q44: 3.741198039
C45: 2.2 | D45: 0.03060227425 | E45: 332.172814 | F45: 0.00281270903 | G45: 2.2 | H45: 0.02399 | I45: 305.3376453 | J45: 0.002204963235 | L45: 4.254846409 | M45: 0.002808760766 | N45: 4.266814054 | O45: 3.911111111 | P45: 0.002202535871 | Q45: 3.919734967
C46: 2.3 | D46: 0.03211843924 | E46: 353.0290541 | F46: 0.00295206243 | G46: 2.3 | H46: 0.02501 | I46: 319.2166291 | J46: 0.002298713235 | L46: 4.521996804 | M46: 0.002947713651 | N46: 4.53534602 | O46: 4.088888889 | P46: 0.002296075236 | Q46: 4.098288072
C47: 2.4 | D47: 0.03357395764 | E47: 372.2460873 | F47: 0.003085841695 | G47: 2.4 | H47: 0.02585 | I47: 333.095613 | J47: 0.002375919118 | L47: 4.768150376 | M47: 0.003081090257 | N47: 4.782864133 | O47: 4.266666667 | P47: 0.002373101085 | Q47: 4.276803922
C48: 2.5 | D48: 0.03488392419 | E48: 391.6866727 | F48: 0.003206243032 | G48: 2.5 | H48: 0.0268 | I48: 346.9745969 | J48: 0.002463235294 | L48: 5.017167459 | M48: 0.003201113996 | N48: 5.033253717 | O48: 4.444444444 | P48: 0.002460206503 | Q48: 4.455392157
C49: 2.6 | D49: 0.03603620959 | E49: 408.1294974 | F49: 0.003312151616 | G49: 2.6 | H49: 0.02794 | I49: 360.8535808 | J49: 0.002568014706 | L49: 5.227785819 | M49: 0.003306678524 | N49: 5.245101038 | O49: 4.622222222 | P49: 0.00256472299 | Q49: 4.634092157
C50: 2.7 | D50: 0.0372006243 | E50: 424.0387648 | F50: 0.003419175028 | G50: 2.7 | H50: 0.02913 | I50: 374.7325646 | J50: 0.002677389706 | L50: 5.431569773 | M50: 0.003413342939 | N50: 5.450141261 | O50: 4.8 | P50: 0.002673811883 | Q50: 4.812851471
C51: 2.8 | D51: 0.03851059086 | E51: 442.6307781 | F51: 0.003539576366 | G51: 2.8 | H51: 0.03033 | I51: 388.6115485 | J51: 0.002787683824 | L51: 5.669717381 | M51: 0.003533326808 | N51: 5.689785779 | O51: 4.977777778 | P51: 0.002783805439 | Q51: 4.991654248
C52: 2.9 | D52: 0.03988120401 | E52: 462.7524085 | F52: 0.003665551839 | G52: 2.9 | H52: 0.03153 | I52: 402.4905324 | J52: 0.002897977941 | L52: 5.92745806 | M52: 0.003658850076 | N52: 5.949185465 | O52: 5.155555556 | P52: 0.002893786898 | Q52: 5.170496242
C53: 3 | D53: 0.04140949833 | E53: 484.8168862 | F53: 0.003806020067 | G53: 3 | H53: 0.03266 | I53: 416.3695163 | J53: 0.003001838235 | L53: 6.210084933 | M53: 0.003798795498 | N53: 6.233720641 | O53: 5.333333333 | P53: 0.002997341715 | Q53: 5.349343137
C54: 3.1 | D54: 0.04292566332 | E54: 508.0575503 | F54: 0.003945373467 | G54: 3.1 | H54: 0.0338 | I54: 430.2485001 | J54: 0.003106617647 | L54: 6.507777737 | M54: 0.003937610892 | N54: 6.53345335 | O54: 5.511111111 | P54: 0.003101802081 | Q54: 5.528232026
C55: 3.2 | D55: 0.04445395764 | E55: 528.9905521 | F55: 0.004085841695 | G55: 3.2 | H55: 0.03487 | I55: 444.127484 | J55: 0.003204963235 | L55: 6.775911382 | M55: 0.00407751731 | N55: 6.803596683 | O55: 5.688888889 | P55: 0.003199838288 | Q55: 5.707121569
C56: 3.3 | D56: 0.04589734671 | E56: 551.5411874 | F56: 0.004218506132 | G56: 3.3 | H56: 0.03583 | I56: 458.0064679 | J56: 0.003293198529 | L56: 7.064765513 | M56: 0.00420963318 | N56: 7.09456827 | O56: 5.866666667 | P56: 0.003287787827 | Q56: 5.885986765
C57: 3.4 | D57: 0.04728008919 | E57: 572.0407997 | F57: 0.004345596433 | G57: 3.4 | H57: 0.03673 | I57: 471.8854518 | J57: 0.003375919118 | L57: 7.327347815 | M57: 0.004336181594 | N57: 7.359189511 | O57: 6.044444444 | P57: 0.003370233495 | Q57: 6.06485
C58: 3.5 | D58: 0.0484445039 | E58: 589.4975324 | F58: 0.004452619844 | G58: 3.5 | H58: 0.03774 | I58: 485.7644356 | J58: 0.00346875 | L58: 7.55095346 | M58: 0.00444273626 | N58: 7.584574985 | O58: 6.222222222 | P58: 0.003462747763 | Q58: 6.243805556
C59: 3.6 | D59: 0.0495967893 | E59: 606.6581742 | F59: 0.004558528428 | G59: 3.6 | H59: 0.03882 | I59: 499.6434195 | J59: 0.003568014706 | L59: 7.770766438 | M59: 0.004548169805 | N59: 7.806189697 | O59: 6.4 | P59: 0.003561664442 | Q59: 6.422835294
C60: 3.7 | D60: 0.05090675585 | E60: 624.6362233 | F60: 0.004678929766 | G60: 3.7 | H60: 0.04002 | I60: 513.5224034 | J60: 0.003678308824 | L60: 8.001049695 | M60: 0.004668017599 | N60: 8.038486044 | O60: 6.577777778 | P60: 0.003671560389 | Q60: 6.601972876
C61: 3.8 | D61: 0.05228949833 | E61: 645.8776365 | F61: 0.004806020067 | G61: 3.8 | H61: 0.04121 | I61: 527.4013873 | J61: 0.003787683824 | L61: 8.273133823 | M61: 0.004794508022 | N61: 8.312894671 | O61: 6.755555556 | P61: 0.003780528611 | Q61: 6.781143464
C62: 3.9 | D62: 0.05380566332 | E62: 667.9254213 | F62: 0.004945373467 | G62: 3.9 | H62: 0.04241 | I62: 541.2803711 | J62: 0.003897977941 | L62: 8.555546875 | M62: 0.004933185275 | N62: 8.597857249 | O62: 6.933333333 | P62: 0.00389040051 | Q62: 6.960359314
C63: 4 | D63: 0.05533395764 | E63: 692.4413538 | F63: 0.005085841695 | G63: 4 | H63: 0.0436 | I63: 555.159355 | J63: 0.004007352941 | L63: 8.869574763 | M63: 0.005072952485 | N63: 8.914684017 | O63: 7.111111111 | P63: 0.003999344889 | Q63: 7.139607843
C64: 4.1 | D64: 0.05685012263 | E64: 713.1093399 | F64: 0.005225195095 | G64: 4.1 | H64: 0.04474 | I64: 569.0383389 | J64: 0.004112132353 | L64: 9.134313787 | M64: 0.005211591131 | N64: 9.182042359 | O64: 7.288888889 | P64: 0.004103700644 | Q64: 7.318861765
C65: 4.2 | D65: 0.05837841695 | E65: 736.6271709 | F65: 0.005365663322 | G65: 4.2 | H65: 0.0457 | I65: 582.9173228 | J65: 0.004200367647 | L65: 9.435556859 | M65: 0.005351319438 | N65: 9.48618488 | O65: 7.466666667 | P65: 0.004191570728 | Q65: 7.498029412
C66: 4.3 | D66: 0.0597490301 | E66: 759.43085 | F66: 0.005491638796 | G66: 4.3 | H66: 0.04659 | I66: 596.7963066 | J66: 0.004282169118 | L66: 9.727652262 | M66: 0.005476614727 | N66: 9.781073014 | O66: 7.644444444 | P66: 0.004273026722 | Q66: 7.677179248
C67: 4.4 | D67: 0.06091344482 | E67: 776.8888874 | F67: 0.005598662207 | G67: 4.4 | H67: 0.04755 | I67: 610.6752905 | J67: 0.004370404412 | L67: 9.95127462 | M67: 0.00558304795 | N67: 10.00698844 | O67: 7.822222222 | P67: 0.004360881929 | Q67: 7.856408497
C68: 4.5 | D68: 0.06207785953 | E68: 793.9584351 | F68: 0.005705685619 | G68: 4.5 | H68: 0.04857 | I68: 624.5542744 | J68: 0.004464154412 | L68: 10.16992076 | M68: 0.005689469847 | N68: 10.22794713 | O68: 8 | P68: 0.00445421963 | Q68: 8.035713235
C69: 4.6 | D69: 0.06330292085 | E69: 811.6124655 | F69: 0.005818283166 | G69: 4.6 | H69: 0.04976 | I69: 638.4332583 | J69: 0.004573529412 | L69: 10.39605362 | M69: 0.005801422326 | N69: 10.4565408 | O69: 8.177777778 | P69: 0.004563102606 | Q69: 8.215179085
C70: 4.7 | D70: 0.06468566332 | E70: 831.8354786 | F70: 0.005945373467 | G70: 4.7 | H70: 0.05096 | I70: 663.5889166 | J70: 0.004683823529 | L70: 10.65509292 | M70: 0.005927769475 | N70: 10.71844143 | O70: 8.5 | P70: 0.00467288856 | Q70: 8.5398125
C71: 4.8 | D71: 0.06614118172 | E71: 856.3118102 | F71: 0.006079152731 | G71: 4.8 | H71: 0.05215 | I71: 743.1894656 | J71: 0.004793198529 | L71: 10.96861356 | M71: 0.00606074923 | N71: 11.03529343 | O71: 9.519614177 | P71: 0.004781747729 | Q71: 9.565243578
C72: 4.9 | D72: 0.06765734671 | E72: 876.7772 | F72: 0.006218506132 | G72: 4.9 | H72: 0.05335 | I72: 745.7724521 | J72: 0.004903492647 | L72: 11.2307575 | M72: 0.006199251006 | N72: 11.30059603 | O72: 9.5527 | P72: 0.004891509683 | Q72: 9.599541594
C73: 5 | D73: 0.06918564103 | E73: 899.2497289 | F73: 0.006358974359 | G73: 5 | H73: 0.05449 | I73: 822.7900147 | J73: 0.005008272059 | L73: 11.51861115 | M73: 0.006338841386 | N73: 11.59185771 | O73: 10.53922835 | P73: 0.004995772381 | Q73: 10.59201168
C74: 5.1 | D74: 0.0706290301 | E74: 922.3455049 | F74: 0.006491638796 | G74: 5.1 | H74: 0.05556 | I74: 836.2627147 | J74: 0.005106617647 | L74: 11.81444807 | M74: 0.006470658856 | N74: 11.8911432 | O74: 10.71180199 | P74: 0.005093623095 | Q74: 10.76650306
C75: 5.2 | D75: 0.07208454849 | E75: 945.9680752 | F75: 0.00662541806 | G75: 5.2 | H75: 0.05652 | I75: 846.6715447 | J75: 0.005194852941 | L75: 12.11703276 | M75: 0.006603566442 | N75: 12.19731317 | O75: 10.8451301 | P75: 0.005181406242 | Q75: 10.90146895
C76: 5.3 | D76: 0.07338238573 | E76: 966.0199457 | F76: 0.006744704571 | G76: 5.3 | H76: 0.05742 | I76: 859.0285247 | J76: 0.005277573529 | L76: 12.37387987 | M76: 0.006722060811 | N76: 12.45733804 | O76: 11.00341232 | P76: 0.005263695943 | Q76: 11.06148364
C77: 5.4 | D77: 0.07447402453 | E77: 983.8010557 | F77: 0.006845039019 | G77: 5.4 | H77: 0.05837 | I77: 871.2403947 | J77: 0.005364889706 | L77: 12.60164051 | M77: 0.006821718101 | N77: 12.68789923 | O77: 11.15983581 | P77: 0.00535054995 | Q77: 11.2197071
C78: 5.5 | D78: 0.07571121516 | E78: 1003.813315 | F78: 0.006958751394 | G78: 5.5 | H78: 0.05951 | I78: 885.6634147 | J78: 0.005469669118 | L78: 12.85798025 | M78: 0.006934651024 | N78: 12.94745573 | O78: 11.34458222 | P78: 0.005454764801 | Q78: 11.40663333
C79: 5.6 | D79: 0.0770090524 | E79: 1024.489 | F79: 0.007078037904 | G79: 5.6 | H79: 0.0607 | I79: 902.2769047 | J79: 0.005579044118 | L79: 13.12281789 | M79: 0.00705310617 | N79: 13.21570169 | O79: 11.55738666 | P79: 0.005563538894 | Q79: 11.62186583
C80: 5.7 | D80: 0.07853734671 | E80: 1047.39712 | F80: 0.007218506132 | G80: 5.7 | H80: 0.0619 | I80: 916.9284747 | J80: 0.005689338235 | L80: 13.41625108 | M80: 0.007192577419 | N80: 13.51309637 | O80: 11.74506059 | P80: 0.005673215075 | Q80: 11.81188222
C81: 5.8 | D81: 0.08006564103 | E81: 1072.062492 | F81: 0.007358974359 | G81: 5.8 | H81: 0.0631 | I81: 931.8041147 | J81: 0.005799632353 | L81: 13.73219317 | M81: 0.007332029219 | N81: 13.83324803 | O81: 11.93560467 | P81: 0.005782879229 | Q81: 12.00482679
C82: 5.9 | D82: 0.08158180602 | E82: 1096.787784 | F82: 0.007498327759 | G82: 5.9 | H82: 0.06423 | I82: 948.3336047 | J82: 0.005903492647 | L82: 14.04890277 | M82: 0.007470355045 | N82: 14.15424604 | O82: 12.14733314 | P82: 0.005886135313 | Q82: 12.21904484
C83: 6 | D83: 0.08303732441 | E83: 1121.408725 | F83: 0.007632107023 | G83: 6 | H83: 0.06537 | I83: 963.7877847 | J83: 0.006008272059 | L83: 14.36427572 | M83: 0.007603129839 | N83: 14.47390541 | O83: 12.34528782 | P83: 0.005990294366 | Q83: 12.41946167
C84: 6.1 | D84: 0.08448071349 | E84: 1143.237131 | F84: 0.00776477146 | G84: 6.1 | H84: 0.06638 | I84: 976.5426147 | J84: 0.006101102941 | L84: 14.64387872 | M84: 0.00773478077 | N84: 14.75758509 | O84: 12.50866616 | P84: 0.006082566569 | Q84: 12.58498282
C85: 6.2 | D85: 0.08579068004 | E85: 1164.965996 | F85: 0.007885172798 | G85: 6.2 | H85: 0.06728 | I85: 988.0157647 | J85: 0.006183823529 | L85: 14.92220669 | M85: 0.007854247285 | N85: 15.03987087 | O85: 12.65562729 | P85: 0.006164782151 | Q85: 12.73388745
C86: 6.3 | D86: 0.08695509476 | E86: 1182.624947 | F86: 0.00799219621 | G86: 6.3 | H86: 0.06824 | I86: 1000.314065 | J86: 0.006272058824 | L86: 15.14840257 | M86: 0.007960427764 | N86: 15.26947158 | O86: 12.81315787 | P86: 0.006252471323 | Q86: 12.89352275
C87: 6.4 | D87: 0.08818015608 | E87: 1202.110243 | F87: 0.008104793757 | G87: 6.4 | H87: 0.06925 | I87: 1013.812655 | J87: 0.006364889706 | L87: =E87/$M$7*(10^-6) -> 15.39799236 | M87: 0.008072126306 | N87: 15.52278991 | O87: =I87/$M$7*(10^-6) -> 12.98606313 | P87: =LN(1+J87) -> 0.006344719338 | Q87: =O87*(1+J87) -> 13.06871799
C88: 6.5 | D88: 0.08941734671 | E88: 1222.266464 | F88: 0.008218506132 | G88: 6.5 | H88: 0.07039 | I88: 1029.856925 | J88: 0.006469669118 | L88: 15.65617612 | M88: =LN(1+F88) -> 0.008184918113 | N88: =L88*(1+F88) -> 15.7848465 | O88: 13.19157635 | P88: 0.006448830639 | Q88: 13.27692149
C89: 6.6 | D89: 0.09086073579 | E89: 1248.740652 | F89: 0.008351170569 | G89: 6.6 | H89: 0.07159 | I89: 1044.689915 | J89: 0.006579963235 | L89: 15.99528756 | M89: 0.008316492478 | N89: 16.12886694 | O89: 13.38157412 | P89: 0.006558409773 | Q89: 13.46962439
C90: 6.7 | D90: 0.0923890301 | E90: 1273.790042 | F90: 0.008491638796 | G90: 6.7 | H90: 0.07278 | I90: 1061.354065 | J90: 0.006689338235 | L90: 16.31614858 | M90: 0.008455787645 | N90: 16.45469942 | O90: 13.59502747 | P90: 0.006667063891 | Q90: 13.68596921
C91: 6.8 | D91: 0.09391732441 | E91: 1299.314734 | F91: 0.008632107023 | G91: 6.8 | H91: 0.07398 | I91: 1077.035495 | J91: 0.006799632353 | L91: 16.6430978 | M91: 0.008595063411 | N91: 16.7867628 | O91: 13.79589302 | P91: 0.006776619115 | Q91: 13.88970002
C92: 6.9 | D92: 0.09536071349 | E92: 1324.118132 | F92: 0.00876477146 | G92: 6.9 | H92: 0.07511 | I92: 1092.640735 | J92: 0.006903492647 | L92: 16.96080787 | M92: 0.008726583826 | N92: 17.10946548 | O92: 13.99578265 | P92: 0.006879772646 | Q92: 14.09240243
C93: 7 | D93: 0.0968890078 | E93: 1348.489824 | F93: 0.008905239688 | G93: 7 | H93: 0.07625 | I93: 1106.695505 | J93: 0.007008272059 | L93: 17.27298816 | M93: 0.008865821885 | N93: 17.42680826 | O93: 14.1758121 | P93: 0.00698382826 | Q93: 14.27516004
C94: 7.1 | D94: 0.09811406912 | E94: 1373.169479 | F94: 0.009017837235 | G94: 7.1 | H94: 0.07721 | I94: 1119.150645 | J94: 0.007096507353 | L94: 17.5891132 | M94: 0.008977419347 | N94: 17.74772896 | O94: 14.33535166 | P94: 0.007071445642 | Q94: 14.43708259
C95: 7.2 | D95: 0.09935125975 | E95: 1391.583766 | F95: 0.00913154961 | G95: 7.2 | H95: 0.0781 | I95: 1130.609265 | J95: 0.007178308824 | L95: 17.82498429 | M95: 0.009090109097 | N95: 17.98775401 | O95: 14.48212668 | P95: 0.0071526674 | Q95: 14.58608385
C96: 7.3 | D96: 0.1005156745 | E96: 1409.235386 | F96: 0.009238573021 | G96: 7.3 | H96: 0.07912 | I96: 1145.488445 | J96: 0.007272058824 | L96: 18.05108627 | M96: 0.009196158439 | N96: 18.21785255 | O96: 14.6727161 | P96: 0.007245744898 | Q96: 14.77941695
C97: 7.4 | D97: 0.1018135117 | E97: 1433.269991 | F97: 0.009357859532 | G97: 7.4 | H97: 0.08019 | I97: 1159.653675 | J97: 0.007370404412 | L97: 18.35894878 | M97: 0.009314346016 | N97: 18.53074924 | O97: 14.85416044 | P97: 0.007343375708 | Q97: 14.96364161
C98: 7.5 | D98: 0.1032690301 | E98: 1459.15144 | F98: 0.009491638796 | G98: 7.5 | H98: 0.08133 | I98: 1175.863345 | J98: 0.007475183824 | L98: 18.69046774 | M98: 0.009446876216 | N98: 18.86787091 | O98: 15.06179229 | P98: 0.007447383095 | Q98: 15.17438196
C99: 7.6 | D99: 0.1047851951 | E99: 1485.47572 | F99: 0.009630992196 | G99: 7.6 | H99: 0.08253 | I99: 1192.158885 | J99: 0.007585477941 | L99: 19.027659 | M99: 0.009584909834 | N99: 19.21091424 | O99: 15.27052407 | P99: 0.007556852869 | Q99: 15.38635829
C100: 7.7 | D100: 0.1062407135 | E100: 1509.632206 | F100: 0.00976477146 | G100: 7.7 | H100: 0.08372 | I100: 1207.110145 | J100: 0.007694852941 | L100: 19.33708269 | M100: 0.009717404184 | N100: 19.52590488 | O100: 15.46203677 | P100: 0.007665398562 | Q100: 15.58101487
C101: 7.8 | D101: 0.1077690078 | E101: 1534.615741 | F101: 0.009905239688 | G101: 7.8 | H101: 0.08492 | I101: 1223.293555 | J101: 0.007805147059 | L101: 19.65710016 | M101: 0.00985650436 | N101: 19.85180845 | O101: 15.66933226 | P101: 0.007774844474 | Q101: 15.7916337
C102: 7.9 | D102: 0.1092123969 | E102: 1561.350403 | F102: 0.01003790412 | G102: 7.9 | H102: 0.08611 | I102: 1238.356395 | J102: 0.007914522059 | L102: 19.99954805 | M102: 0.009987858985 | N102: 20.2003016 | O102: 15.86227421 | P102: 0.007883366509 | Q102: 15.98781653
C103: 8 | D103: 0.1105951394 | E103: 1587.322936 | F103: 0.01016499443 | G103: 8 | H103: 0.08707 | I103: 1253.161255 | J103: 0.008002757353 | L103: 20.33223373 | M103: 0.01011367833 | N103: 20.53891077 | O103: 16.05191166 | P103: 0.007970905115 | Q103: 16.18037121
C104: 8.1 | D104: 0.1117474247 | E104: 1606.701371 | F104: 0.01027090301 | G104: 8.1 | H104: 0.08797 | I104: 1265.165255 | J104: 0.008085477941 | L104: 20.58045472 | M104: 0.01021851569 | N104: 20.79183457 | O104: 16.20567251 | P104: 0.008052965599 | Q104: 16.33670312
C105: 8.2 | D105: 0.1129118395 | E105: 1627.406826 | F105: 0.01037792642 | G105: 8.2 | H105: 0.08892 | I105: 1278.196515 | J105: 0.008172794118 | L105: 20.8456737 | M105: 0.01032444544 | N105: 21.06200856 | O105: 16.37259168 | P105: 0.008139577694 | Q105: 16.5064015
C106: 8.3 | D106: 0.114221806 | E106: 1648.239551 | F106: 0.01049832776 | G106: 8.3 | H106: 0.08994 | I106: 1293.637835 | J106: 0.008266544118 | L106: 21.11252288 | M106: 0.010443603 | N106: 21.33416906 | O106: 16.57038163 | P106: 0.008232563382 | Q106: 16.70736142
C107: 8.4 | D107: 0.1156651951 | E107: 1673.836044 | F107: 0.0106309922 | G107: 8.4 | H107: 0.09108 | I107: 1307.533725 | J107: 0.008371323529 | L107: 21.44039181 | M107: 0.01057488053 | N107: 21.66832445 | O107: 16.74837596 | P107: 0.008336478332 | Q107: 16.88858204
C108: 8.5 | D108: 0.1171934894 | E108: 1702.248159 | F108: 0.01077146042 | G108: 8.5 | H108: 0.09227 | I108: 1325.685395 | J108: 0.008480698529 | L108: 21.80432643 | M108: 0.01071386149 | N108: 22.03919087 | O108: 16.98088315 | P108: 0.008444939438 | Q108: 17.12489291
C109: 8.6 | D109: 0.1186368785 | E109: 1727.023908 | F109: 0.01090412486 | G109: 8.6 | H109: 0.09347 | I109: 1342.031595 | J109: 0.008590992647 | L109: 22.12168234 | M109: 0.01084510355 | N109: 22.36289993 | O109: 17.19026384 | P109: 0.00855430007 | Q109: 17.33794527
C110: 8.7 | D110: 0.1201651728 | E110: 1754.11458 | F110: 0.01104459309 | G110: 8.7 | H110: 0.09466 | I110: 1358.555115 | J110: 0.008700367647 | L110: 22.46869042 | M110: 0.01098404697 | N110: 22.71684796 | O110: 17.40191583 | P110: 0.008662737555 | Q110: 17.5533189
C111: 8.8 | D111: 0.1216085619 | E111: 1780.948852 | F111: 0.01117725753 | G111: 8.8 | H111: 0.09586 | I111: 1374.761065 | J111: 0.008810661765 | L111: 22.81241423 | M111: 0.01111525358 | N111: 23.06739446 | O111: 17.60950004 | P111: 0.008772074372 | Q111: 17.76465138
C112: 8.9 | D112: 0.1229913043 | E112: 1805.497712 | F112: 0.01130434783 | G112: 8.9 | H112: 0.09694 | I112: 1391.454835 | J112: 0.008909926471 | L112: 23.1268639 | M112: 0.01124093116 | N112: 23.38829801 | O112: 17.82333279 | P112: 0.008870467288 | Q112: 17.98213737
C113: 9 | D113: 0.124228495 | E113: 1828.866671 | F113: 0.0114180602 | G113: 9 | H113: 0.09783 | I113: 1403.811995 | J113: 0.008991727941 | L113: 23.42620004 | M113: 0.01135336614 | N113: 23.69368181 | O113: 17.98161732 | P113: 0.008951543064 | Q113: 18.14330313
C114: 9.1 | D114: 0.1253807804 | E114: 1848.812059 | F114: 0.01152396878 | G114: 9.1 | H114: 0.09879 | I114: 1416.336235 | J114: 0.009079963235 | L114: 23.68168321 | M114: 0.01145807362 | N114: 23.95459019 | O114: 18.142042 | P114: 0.009038988217 | Q114: 18.30677107
C115: 9.2 | D115: 0.126617971 | E115: 1871.667869 | F115: 0.01163768116 | G115: 9.2 | H115: 0.09975 | I115: 1430.535925 | J115: 0.009168198529 | L115: 23.97444636 | M115: 0.01157048419 | N115: 24.25345333 | O115: 18.32392775 | P115: 0.009126425724 | Q115: 18.49192515
C116: 9.3 | D116: 0.1280007135 | E116: 1897.756545 | F116: 0.01176477146 | G116: 9.3 | H116: 0.10082 | I116: 1444.472605 | J116: 0.009266544118 | L116: 24.30861974 | M116: 0.01169610458 | N116: 24.5946051 | O116: 18.50244456 | P116: 0.009223873104 | Q116: 18.67389828
C117: 9.4 | D117: 0.1295168785 | E117: 1925.789085 | F117: 0.01190412486 | G117: 9.4 | H117: 0.10196 | I117: 1461.251685 | J117: 0.009371323529 | L117: 24.66769232 | M117: 0.0118338281 | N117: 24.96133961 | O117: 18.71737006 | P117: 0.009327685098 | Q117: 18.89277659
C118: 9.5 | D118: 0.1309723969 | E118: 1953.647056 | F118: 0.01203790412 | G118: 9.5 | H118: 0.10321 | I118: 1478.358035 | J118: 0.009486213235 | L118: 25.02452883 | M118: 0.01196602483 | N118: 25.32577171 | O118: 18.93648761 | P118: 0.009441501655 | Q118: 19.11612317
C119: 9.6 | D119: 0.1324885619 | E119: 1981.521919 | F119: 0.01217725753 | G119: 9.6 | H119: 0.10447 | I119: 1495.790535 | J119: 0.009602022059 | L119: 25.38158171 | M119: 0.01210371118 | N119: 25.69065977 | O119: 19.15978285 | P119: 0.009556215634 | Q119: 19.34375551
C120: 9.7 | D120: 0.1340168562 | E120: 2008.352485 | F120: 0.01231772575 | G120: 9.7 | H120: 0.10561 | I120: 1512.907865 | J120: 0.009706801471 | L120: 25.72525806 | M120: 0.01224247984 | N120: 26.04213474 | O120: 19.37904104 | P120: 0.009659993136 | Q120: 19.56714955
C121: 9.8 | D121: 0.1353874693 | E121: 2034.265099 | F121: 0.01244370123 | G121: 9.8 | H121: 0.10674 | I121: 1529.028685 | J121: 0.009810661765 | L121: 26.05717623 | M121: 0.01236691473 | N121: 26.38142394 | O121: 19.5855348 | P121: 0.00976284968 | Q121: 19.77768186
C122: 9.9 | D122: 0.13662466 | E122: 2058.723612 | F122: 0.0125574136 | G122: 9.9 | H122: 0.10776 | I122: 1543.154805 | J122: 0.009904411765 | L122: 26.37046862 | M122: 0.01247922318 | N122: 26.7016135 | O122: 19.76647818 | P122: 0.009855684557 | Q122: 19.96225352
C123: 10 | D123: 0.1377890747 | E123: 2079.414596 | F123: 0.01266443701 | G123: 10 | H123: 0.10865 | I123: 1555.916715 | J123: 0.009986213235 | L123: 26.63550223 | M123: 0.01258491374 | N123: 26.97282587 | O123: 19.92994721 | P123: 0.009936680498 | Q123: 20.12897191
C124: 10.1 | D124: 0.139014136 | E124: 2102.262617 | F124: 0.01277703456 | G124: 10.1 | H124: 0.10961 | I124: 1569.523715 | J124: 0.01007444853 | L124: 26.92816561 | M124: 0.01269609695 | N124: 27.27222771 | O124: 20.10424111 | P124: 0.01002403955 | Q124: 20.30678025
C125: 10.2 | D125: 0.1403241026 | E125: 2126.463445 | F125: 0.0128974359 | G125: 10.2 | H125: 0.11057 | I125: 1584.425985 | J125: 0.01016268382 | L125: 27.23815728 | M125: 0.01281497226 | N125: 27.58945967 | O125: 20.2951263 | P125: 0.01011139097 | Q125: 20.50137925
C126: 10.3 | D126: 0.1418523969 | E126: 2157.225542 | F126: 0.01303790412 | G126: 10.3 | H126: 0.1117 | I126: 1601.099275 | J126: 0.01026654412 | L126: 27.63219314 | M126: 0.01295364226 | N126: 27.99245903 | O126: 20.50869672 | P126: 0.0102142011 | Q126: 20.71925016
C127: 10.4 | D127: 0.1433685619 | E127: 2185.381825 | F127: 0.01317725753 | G127: 10.4 | H127: 0.1129 | I127: 1619.457505 | J127: 0.01037683824 | L127: 27.99285077 | M127: 0.01309119271 | N127: 28.36171977 | O127: 20.74384976 | P127: 0.01032336843 | Q127: 20.95910534
C128: 10.5 | D128: 0.1448968562 | E128: 2214.1327 | F128: 0.01331772575 | G128: 10.5 | H128: 0.1141 | I128: 1635.940235 | J128: 0.01048713235 | L128: 28.3611246 | M128: 0.01322982441 | N128: 28.73883028 | O128: 20.95497928 | P128: 0.01043252384 | Q128: 21.17473692
C129: 10.6 | D129: 0.1464130212 | E129: 2242.606228 | F129: 0.01345707915 | G129: 10.6 | H129: 0.11529 | I129: 1653.069865 | J129: 0.01059650735 | L129: 28.72584587 | M129: 0.01336733688 | N129: 29.11241186 | O129: 21.17439502 | P129: 0.01054075786 | Q129: 21.39876965
C130: 10.7 | D130: 0.1478685396 | E130: 2269.25128 | F130: 0.01359085842 | G130: 10.7 | H130: 0.11649 | I130: 1670.159825 | J130: 0.01070680147 | L130: 29.06714594 | M130: 0.01349933106 | N130: 29.46219341 | O130: 21.39330262 | P130: 0.01064988954 | Q130: 21.62235647
C131: 10.8 | D131: 0.1491057302 | E131: 2292.172388 | F131: 0.01370457079 | G131: 10.8 | H131: 0.11762 | I131: 1685.234395 | J131: 0.01081066176 | L131: 29.3607455 | M131: 0.01361151241 | N131: 29.76312191 | O131: 21.58639483 | P131: 0.01075264432 | Q131: 21.81975804
C132: 10.9 | D132: 0.1502580156 | E132: 2315.360284 | F132: 0.01381047938 | G132: 10.9 | H132: 0.11858 | I132: 1700.109475 | J132: 0.01089889706 | L132: 29.65776239 | M132: 0.01371598373 | N132: 30.06735031 | O132: 21.77693173 | P132: 0.01083993213 | Q132: 22.01427627
C133: 11 | D133: 0.1514224303 | E133: 2338.102002 | F133: 0.01391750279 | G133: 11 | H133: 0.11948 | I133: 1712.977375 | J133: 0.01098161765 | L133: 29.94906412 | M133: 0.01382154366 | N133: 30.36588031 | O133: 21.9417584 | P133: 0.01092175753 | Q133: 22.1827144
C134: 11.1 | D134: 0.1527202676 | E134: 2363.205933 | F134: 0.0140367893 | G134: 11.1 | H134: 0.12049 | I134: 1727.837745 | J134: 0.01107444853 | L134: 30.27062377 | M134: 0.01393918587 | N134: 30.69552613 | O134: 22.13210689 | P134: 0.01101357583 | Q134: 22.37720776
C135: 11.2 | D135: 0.1542485619 | E135: 2393.882324 | F135: 0.01417725753 | G135: 11.2 | H135: 0.12151 | I135: 1743.186875 | J135: 0.01116819853 | L135: 30.66356181 | M135: 0.01407770007 | N135: 31.09828702 | O135: 22.32871596 | P135: 0.01110629468 | Q135: 22.5780875
C136: 11.3 | D136: 0.1557040803 | E136: 2421.09673 | F136: 0.01431103679 | G136: 11.3 | H136: 0.12265 | I136: 1760.688105 | J136: 0.01127297794 | L136: 31.0121548 | M136: 0.01420960053 | N136: 31.45597089 | O136: 22.55289158 | P136: 0.01120991145 | Q136: 22.80712983
C137: 11.4 | D137: 0.1572202453 | E137: 2448.739126 | F137: 0.01445039019 | G137: 11.4 | H137: 0.12384 | I137: 1777.965065 | J137: 0.01138235294 | L137: 31.36622999 | M137: 0.01434697834 | N137: 31.81948425 | O137: 22.77419449 | P137: 0.01131806136 | Q137: 23.03341841
C138: 11.5 | D138: 0.1587485396 | E138: 2479.808251 | F138: 0.01459085842 | G138: 11.5 | H138: 0.12504 | I138: 1795.432765 | J138: 0.01149264706 | L138: 31.7641986 | M138: 0.01448543607 | N138: 32.22766552 | O138: 22.99794062 | P138: 0.01142710826 | Q138: 23.26224784
C139: 11.6 | D139: 0.1601919287 | E139: 2503.910017 | F139: 0.01472352285 | G139: 11.6 | H139: 0.12623 | I139: 1813.227735 | J139: 0.01160202206 | L139: 32.07292137 | M139: 0.01461618411 | N139: 32.54514776 | O139: 23.22587879 | P139: 0.01153523468 | Q139: 23.49534595
C140: 11.7 | D140: 0.1615018952 | E140: 2530.114269 | F140: 0.01484392419 | G140: 11.7 | H140: 0.12743 | I140: 1829.076975 | J140: 0.01171231618 | L140: 32.40857517 | M140: 0.0147348314 | N140: 32.8896456 | O140: 23.42889385 | P140: 0.0116442579 | Q140: 23.70330046
C141: 11.8 | D141: 0.1626663099 | E141: 2552.973604 | F141: 0.0149509476 | G141: 11.8 | H141: 0.12845 | I141: 1844.551465 | J141: 0.01180606618 | L141: 32.70138348 | M141: 0.01484028384 | N141: 33.19030016 | O141: 23.62710868 | P141: 0.01173691829 | Q141: 23.90605189
C142: 11.9 | D142: 0.1638185953 | E142: 2576.683544 | F142: 0.01505685619 | G142: 11.9 | H142: 0.1294 | I142: 1858.937235 | J142: 0.01189338235 | L142: 33.0050873 | M142: 0.01494462687 | N142: 33.50204015 | O142: 23.81137795 | P142: 0.01182321191 | Q142: 24.09457577
C143: 12 | D143: 0.1651285619 | E143: 2601.304395 | F143: 0.01517725753 | G143: 12 | H143: 0.13036 | I143: 1871.473575 | J143: 0.01198161765 | L143: 33.32045911 | M143: 0.0150632352 | N143: 33.82617229 | O143: 23.97195762 | P143: 0.01191040632 | Q143: 24.25918045
C144: 12.1 | D144: 0.1665719509 | E144: 2630.120388 | F144: 0.01530992196 | G144: 12.1 | H144: 0.13132 | I144: 1886.178415 | J144: 0.01206985294 | L144: 33.68956705 | M144: 0.01519390772 | N144: 34.20535169 | O144: 24.1603139 | P144: 0.01199759313 | Q144: 24.45192534
C145: 12.2 | D145: 0.1681002453 | E145: 2659.6664 | F145: 0.01545039019 | G145: 12.2 | H145: 0.13245 | I145: 1900.943415 | J145: 0.01217371324 | L145: 34.0680259 | M145: 0.01533224825 | N145: 34.59439019 | O145: 24.34944078 | P145: 0.01210020953 | Q145: 24.64586389
C146: 12.3 | D146: 0.1696285396 | E146: 2687.127365 | F146: 0.01559085842 | G146: 12.3 | H146: 0.13365 | I146: 1921.190745 | J146: 0.01228400735 | L146: 34.41977711 | M146: 0.01547056964 | N146: 34.95641098 | O146: 24.60879156 | P146: 0.01220917117 | Q146: 24.91108614
C147: 12.4 | D147: 0.1711447046 | E147: 2717.226415 | F147: 0.01573021182 | G147: 12.4 | H147: 0.13484 | I147: 1937.986405 | J147: 0.01239338235 | L147: 34.80531991 | M147: 0.01560777434 | N147: 35.35281496 | O147: 24.82392944 | P147: 0.01231721307 | Q147: 25.13158189
C148: 12.5 | D148: 0.172600223 | E148: 2743.983328 | F148: 0.01586399108 | G148: 12.5 | H148: 0.13598 | I148: 1956.188915 | J148: 0.01249816176 | L148: 35.14805281 | M148: 0.01573947315 | N148: 35.70564121 | O148: 25.05708784 | P148: 0.01242070446 | Q148: 25.37025538
C149: 12.6 | D149: 0.1738980602 | E149: 2773.057195 | F149: 0.01598327759 | G149: 12.6 | H149: 0.13711 | I149: 1973.233045 | J149: 0.01260202206 | L149: 35.52046391 | M149: 0.01585688996 | N149: 36.08819734 | O149: 25.27540841 | P149: 0.01252327745 | Q149: 25.59392966
C150: 12.7 | D150: 0.1751352508 | E150: 2796.657495 | F150: 0.01609698997 | G150: 12.7 | H150: 0.13825 | I150: 1991.482125 | J150: 0.01270680147 | L150: 35.82276333 | M150: 0.01596880717 | N150: 36.399402 | O150: 25.50916334 | P150: 0.01262674751 | Q150: 25.83330321
C151: 12.8 | D151: 0.1762996656 | E151: 2817.864228 | F151: 0.01620401338 | G151: 12.8 | H151: 0.13927 | I151: 2005.332755 | J151: 0.01280055147 | L151: =E151/$M$7*(10^-6) -> 36.09440323 | M151: 0.01607412957 | N151: 36.67927743 | O151: =I151/$M$7*(10^-6) -> 25.68657792 | P151: =LN(1+J151) -> 0.01271931691 | Q151: =O151*(1+J151) -> 26.01538029
C152: 12.9 | D152: 0.1775975028 | E152: 2843.50079 | F152: 0.01632329989 | G152: 12.9 | H152: 0.14016 | I152: 2018.076785 | J152: 0.01288235294 | L152: 36.42278542 | M152: =LN(1+F152) -> 0.01619150709 | N152: =L152*(1+F152) -> 37.01732546 | O152: 25.84981792 | P152: 0.01280008125 | Q152: 26.1828244
C153: 13 | D153: 0.1789802453 | E153: 2871.484545 | F153: 0.01645039019 | G153: 13 | H153: 0.14112 | I153: 2031.876755 | J153: 0.01297058824 | L153: 36.78123312 | M153: 0.01631654836 | N153: 37.38629875 | O153: 26.0265836 | P153: 0.01288719053 | Q153: 26.3641637
C154: 13.1 | D154: 0.1804964103 | E154: 2901.212177 | F154: 0.01658974359 | G154: 13.1 | H154: 0.14214 | I154: 2047.447905 | J154: 0.01306433824 | L154: 37.16201837 | M154: 0.01645363705 | N154: 37.77852672 | O154: 26.22603657 | P154: 0.01297973582 | Q154: 26.56866238
C155: 13.2 | D155: 0.1819519287 | E155: 2929.292774 | F155: 0.01672352285 | G155: 13.2 | H155: 0.14327 | I155: 2065.172655 | J155: 0.01316819853 | L155: 37.52170652 | M155: 0.01658522451 | N155: 38.14920164 | O155: 26.45307528 | P155: 0.01308225149 | Q155: 26.80141463
C156: 13.3 | D156: 0.183480223 | E156: 2960.279718 | F156: 0.01686399108 | G156: 13.3 | H156: 0.14453 | I156: 2083.206785 | J156: 0.01328400735 | L156: 37.91862248 | M156: 0.01672337271 | N156: 38.55808179 | O156: 26.68407689 | P156: 0.01319654861 | Q156: 27.03854836
C157: 13.4 | D157: 0.184923612 | E157: 2988.598518 | F157: 0.01699665552 | G157: 13.4 | H157: 0.14566 | I157: 2101.235325 | J157: 0.01338786765 | L157: 38.28136181 | M157: 0.01685382849 | N157: 38.93201693 | O157: 26.91500689 | P157: 0.01329904206 | Q157: 27.27534144
C158: 13.5 | D158: 0.1863063545 | E158: 3016.03796 | F158: 0.01712374582 | G158: 13.5 | H158: 0.14686 | I158: 2118.487895 | J158: 0.01349816176 | L158: 38.63283732 | M158: 0.01697878697 | N158: 39.29437621 | O158: 27.13599739 | P158: 0.01340787316 | Q158: 27.50228347
C159: 13.6 | D159: 0.1875314158 | E159: 3038.678016 | F159: 0.01723634337 | G159: 13.6 | H159: 0.14806 | I159: 2136.124345 | J159: 0.01360845588 | L159: 38.92283685 | M159: 0.01708948276 | N159: 39.59372423 | O159: 27.36190505 | P159: 0.01351669242 | Q159: 27.73425833
C160: 13.7 | D160: 0.1886958305 | E160: 3060.72849 | F160: 0.01734336678 | G160: 13.7 | H160: 0.14913 | I160: 2153.109625 | J160: 0.01370680147 | L160: 39.20528435 | M160: 0.0171946872 | N160: 39.88523598 | O160: 27.5794718 | P160: 0.01361371293 | Q160: 27.95749814
C161: 13.8 | D161: 0.1899330212 | E161: 3084.457164 | F161: 0.01745707915 | G161: 13.8 | H161: 0.15009 | I161: 2166.695755 | J161: 0.01379503676 | L161: 39.50922814 | M161: 0.01730645479 | N161: 40.19894386 | O161: 27.75349837 | P161: 0.01370075137 | Q161: 28.1363589
C162: 13.9 | D162: 0.1913036343 | E162: 3110.989051 | F162: 0.01758305463 | G162: 13.9 | H162: 0.15099 | I162: 2181.116725 | J162: 0.01387775735 | L162: 39.84907866 | M162: 0.01743026117 | N162: 40.54974718 | O162: 27.93821852 | P162: 0.01378234302 | Q162: 28.32593834
C163: 14 | D163: 0.1928319287 | E163: 3140.808703 | F163: 0.01772352285 | G163: 14 | H163: 0.152 | I163: 2195.694905 | J163: 0.01397058824 | L163: 40.23104261 | M163: 0.01756829269 | N163: 40.94407841 | O163: 28.1249524 | P163: 0.01387389906 | Q163: 28.51787453
C164: 14.1 | D164: 0.1943480936 | E164: 3169.921903 | F164: 0.01786287625 | G164: 14.1 | H164: 0.15308 | I164: 2212.695635 | J164: 0.01406985294 | L164: 40.60395751 | M164: 0.01770520989 | N164: 41.32926098 | O164: 28.34271704 | P164: 0.0139717913 | Q164: 28.7414949
C165: 14.2 | D165: 0.195876388 | E165: 3197.571719 | F165: 0.01800334448 | G165: 14.2 | H165: 0.15427 | I165: 2231.344075 | J165: 0.01417922794 | L165: 40.95812775 | M165: 0.01784320347 | N165: 41.69551103 | O165: 28.58158743 | P165: 0.01407964294 | Q165: 28.98685227
C166: 14.3 | D166: 0.1973319064 | E166: 3225.535435 | F166: 0.01813712375 | G166: 14.3 | H166: 0.15547 | I166: 2250.049875 | J166: 0.01428952206 | L166: 41.31631876 | M166: 0.01797460822 | N166: 42.06567795 | O166: 28.82119255 | P166: 0.01418838913 | Q166: 29.23303361
C167: 14.4 | D167: 0.1987025195 | E167: 3252.215736 | F167: 0.01826309922 | G167: 14.4 | H167: 0.15667 | I167: 2266.564085 | J167: 0.01439981618 | L167: 41.65807033 | M167: 0.01809833191 | N167: 42.4188758 | O167: 29.03272529 | P167: 0.01429712349 | Q167: 29.4507912
C168: 14.5 | D168: 0.2000124861 | E168: 3277.021544 | F168: 0.01838350056 | G168: 14.5 | H168: 0.1578 | I168: 2285.013955 | J168: 0.01450367647 | L168: 41.97581127 | M168: 0.01821656679 | N168: 42.74747362 | O168: 29.26905217 | P168: 0.0143995042 | Q168: 29.69356103
C169: 14.6 | D169: 0.2010919955 | E169: 3296.889194 | F169: 0.01848272018 | G169: 14.6 | H169: 0.15894 | I169: 2303.222425 | J169: 0.01460845588 | L169: 42.23029869 | M169: 0.01831399059 | N169: 43.01082948 | O169: 29.50228691 | P169: 0.01450278032 | Q169: 29.93326977
C170: 14.7 | D170: 0.2023291862 | E170: 3319.493992 | F170: 0.01859643255 | G170: 14.7 | H170: 0.15995 | I170: 2317.604655 | J170: 0.01470128676 | L170: 42.5198466 | M170: 0.01842563316 | N170: 43.31056405 | O170: 29.68651084 | P170: 0.01459427043 | Q170: 30.12294075
C171: 14.8 | D171: 0.2037119287 | E171: 3344.69347 | F171: 0.01872352285 | G171: 14.8 | H171: 0.16091 | I171: 2331.142365 | J171: 0.01478952206 | L171: 42.8426301 | M171: 0.0185503954 | N171: 43.64479507 | O171: 29.85991719 | P171: 0.01468122356 | Q171: 30.3015311
C172: 14.9 | D172: 0.2052280936 | E172: 3372.768509 | F172: 0.01886287625 | G172: 14.9 | H172: 0.16181 | I172: 2345.854275 | J172: 0.01487224265 | L172: 43.20224707 | M172: 0.01868717821 | N172: 44.01716571 | O172: 30.04836404 | P172: 0.01476273526 | Q172: 30.4952506
C173: 15 | D173: 0.206756388 | E173: 3400.71107 | F173: 0.01900334448 | G173: 15 | H173: 0.16282 | I173: 2361.404385 | J173: 0.01496507353 | L173: 43.5601671 | M173: 0.01882503636 | N173: 44.38795596 | O173: 30.24754749 | P173: 0.01485420159 | Q173: 30.70020427
C174: 15.1 | D174: 0.208272553 | E174: 3429.028764 | F174: 0.01914269788 | G174: 15.1 | H174: 0.16396 | I174: 2380.437265 | J174: 0.01506985294 | L174: 43.92289227 | M174: 0.01896178161 | N174: 44.76369493 | O174: 30.49134222 | P174: 0.01495743076 | Q174: 30.95084227
C175: 15.2 | D175: 0.2097280713 | E175: 3455.298692 | F175: 0.01927647715 | G175: 15.2 | H175: 0.16516 | I175: 2398.270235 | J175: 0.01518014706 | L175: 44.25938733 | M175: 0.01909303947 | N175: 45.1125524 | O175: 30.71976714 | P175: 0.01506608153 | Q175: 31.18609773
C176: 15.3 | D176: 0.2111108138 | E176: 3480.408002 | F176: 0.01940356745 | G176: 15.3 | H176: 0.16635 | I176: 2416.329325 | J176: 0.01528952206 | L176: 44.58101586 | M176: 0.01921771847 | N176: 45.44604661 | O176: 30.95108846 | P176: 0.01517381523 | Q176: 31.42431581
C177: 15.4 | D177: 0.2124086511 | E177: 3503.462135 | F177: 0.01952285396 | G177: 15.4 | H177: 0.16749 | I177: 2434.358235 | J177: 0.01539430147 | L177: 44.87631937 | M177: 0.01933472761 | N177: 45.7524332 | O177: 31.18202321 | P177: 0.01527701141 | Q177: 31.66204867
C178: 15.5 | D178: 0.2135730658 | E178: 3525.290362 | F178: 0.01962987737 | G178: 15.5 | H178: 0.16868 | I178: 2452.650155 | J178: 0.01550367647 | L178: 45.15592007 | M178: 0.01943969612 | N178: 46.04232524 | O178: 31.41632688 | P178: 0.01538472239 | Q178: 31.90339545
C179: 15.6 | D179: 0.2147253512 | E179: 3546.364995 | F179: 0.01973578595 | G179: 15.6 | H179: 0.16982 | I179: 2470.242835 | J179: 0.01560845588 | L179: 45.42586789 | M179: 0.01954356036 | N179: 46.32238309 | O179: 31.64167389 | P179: 0.01548789681 | Q179: 32.13555156
C180: 15.7 | D180: 0.2161080936 | E180: 3569.25921 | F180: 0.01986287625 | G180: 15.7 | H180: 0.17078 | I180: 2484.191075 | J180: 0.01569669118 | L180: 45.71912298 | M180: 0.01966818321 | N180: 46.62723626 | O180: 31.82033878 | P180: 0.01557477228 | Q180: 32.31981281
C181: 15.8 | D181: 0.217563612 | E181: 3596.746141 | F181: 0.01999665552 | G181: 15.8 | H181: 0.17173 | I181: 2498.051385 | J181: 0.01578400735 | L181: 46.07120679 | M181: 0.01979934839 | N181: 46.99247684 | O181: 31.99787736 | P181: 0.01566073537 | Q181: 32.50293209
C182: 15.9 | D182: 0.219079777 | E182: 3624.325839 | F182: 0.02013600892 | G182: 15.9 | H182: 0.17269 | I182: 2512.905605 | J182: 0.01587224265 | L182: 46.42447887 | M182: 0.01993596048 | N182: 47.35928259 | O182: 32.18814707 | P182: 0.01574759582 | Q182: 32.69904515
C183: 16 | D183: 0.2205352954 | E183: 3650.395034 | F183: 0.02026978818 | G183: 16 | H183: 0.17371 | I183: 2529.041335 | J183: 0.01596599265 | L183: 46.7584027 | M183: 0.02006709054 | N183: 47.70618562 | O183: 32.39483181 | P183: 0.01583987679 | Q183: 32.91204746
C184: 16.1 | D184: 0.2220514604 | E184: 3677.411863 | F184: 0.02040914158 | G184: 16.1 | H184: 0.1749 | I184: 2549.492805 | J184: 0.01607536765 | L184: 47.10446491 | M184: 0.02020366607 | N184: 48.0658266 | O184: 32.65679745 | P184: 0.01594752716 | Q184: 33.18176748
C185: 16.2 | D185: 0.2235069788 | E185: 3701.639961 | F185: 0.02054292085 | G185: 16.2 | H185: 0.1761 | I185: 2567.681905 | J185: 0.01618566176 | L185: 47.41480589 | M185: 0.02033476103 | N185: 48.38884449 | O185: 32.88978409 | P185: 0.01605607042 | Q185: 33.42212701
C186: 16.3 | D186: 0.2248897213 | E186: 3725.165312 | F186: 0.02067001115 | G186: 16.3 | H186: 0.17729 | I186: 2586.091915 | J186: 0.01629503676 | L186: 47.71614528 | M186: 0.02045928532 | N186: 48.70243854 | O186: 33.12560039 | P186: 0.01616369752 | Q186: 33.66538327
C187: 16.4 | D187: 0.2260420067 | E187: 3744.356927 | F187: 0.02077591973 | G187: 16.4 | H187: 0.17849 | I187: 2603.565765 | J187: 0.01640533088 | L187: 47.96197327 | M187: 0.02056304373 | N187: 48.95842738 | O187: 33.3494253 | P187: 0.01627221732 | Q187: 33.89653365
C188: 16.5 | D188: 0.2272064214 | E188: 3764.366687 | F188: 0.02088294314 | G188: 16.5 | H188: 0.17963 | I188: 2621.366315 | J188: 0.01651011029 | L188: 48.21828099 | M188: 0.02066788339 | N188: 49.22522061 | O188: 33.57743494 | P188: 0.01637530022 | Q188: 34.1318021
C189: 16.6 | D189: 0.2284314827 | E189: 3785.414985 | F189: 0.02099554069 | G189: 16.6 | H189: 0.1807 | I189: 2638.053755 | J189: 0.01660845588 | L189: 48.48789149 | M189: 0.02077817158 | N189: 49.50592098 | O189: 33.79118661 | P189: 0.0164720438 | Q189: 34.35240605
C190: 16.7 | D190: 0.229959777 | E190: 3809.70133 | F190: 0.02113600892 | G190: 16.7 | H190: 0.1816 | I190: 2652.450515 | J190: 0.01669117647 | L190: 48.79897855 | M190: 0.02091574179 | N190: 49.8303942 | O190: 33.97559666 | P190: 0.01655340966 | Q190: 34.54268934
C191: 16.8 | D191: 0.2314880713 | E191: 3836.815 | F191: 0.02127647715 | G191: 16.8 | H191: 0.18249 | I191: 2665.393285 | J191: 0.01677297794 | L191: 49.14628121 | M191: 0.02105329307 | N191: 50.19194094 | O191: 34.14138234 | P191: 0.01663386495 | Q191: 34.714035
C192: 16.9 | D192: 0.2330042363 | E192: 3859.609775 | F192: 0.02141583055 | G192: 16.9 | H192: 0.18351 | I192: 2681.756995 | J192: 0.01686672794 | L192: 49.43826256 | M192: 0.02118973398 | N192: 50.49702401 | O192: 34.35098731 | P192: 0.01672606417 | Q192: 34.93037607
C193: 17 | D193: 0.2344597547 | E193: 3883.027159 | F193: 0.02154960981 | G193: 17 | H193: 0.18459 | I193: 2699.162305 | J193: 0.01696599265 | L193: 49.73821899 | M193: 0.02132069975 | N193: 50.8100582 | O193: 34.57393428 | P193: 0.01682367762 | Q193: 35.16051539
C194: 17.1 | D194: 0.2359759197 | E194: 3906.49759 | F194: 0.02168896321 | G194: 17.1 | H194: 0.18584 | I194: 2720.482885 | J194: 0.01708088235 | L194: 50.03885492 | M194: 0.02145710418 | N194: 51.1241458 | O194: 34.84703247 | P194: 0.01693664424 | Q194: 35.44225053
C195: 17.2 | D195: 0.2372858863 | E195: 3927.575948 | F195: 0.02180936455 | G195: 17.2 | H195: 0.18704 | I195: 2739.101135 | J195: 0.01719117647 | L195: 50.30885045 | M195: 0.02157494263 | N195: 51.40605451 | O195: 35.08551614 | P195: 0.0170450802 | Q195: 35.68867744
C196: 17.3 | D196: 0.238450301 | E196: 3945.239999 | F196: 0.02191638796 | G196: 17.3 | H196: 0.18823 | I196: 2757.761115 | J196: 0.01730055147 | L196: 50.53511165 | M196: 0.02167967626 | N196: 51.64265876 | O196: 35.32453435 | P196: 0.01715260091 | Q196: 35.93566827
C197: 17.4 | D197: 0.2396025864 | E197: 3962.321508 | F197: 0.02202229654 | G197: 17.4 | H197: 0.18937 | I197: 2775.707335 | J197: 0.01740533088 | L197: 50.75391101 | M197: 0.02178330812 | N197: 51.87162869 | O197: 35.5544099 | P197: 0.0172555931 | Q197: 36.17324617
C198: 17.5 | D198: 0.240839777 | E198: 3982.67188 | F198: 0.02213600892 | G198: 17.5 | H198: 0.19045 | I198: 2794.335645 | J198: 0.01750459559 | L198: 51.01458167 | M198: 0.02189456406 | N198: 52.14384091 | O198: 35.79302244 | P198: 0.01735315487 | Q198: 36.41956482
C199: 17.6 | D199: 0.2422831661 | E199: 4006.619475 | F199: 0.02226867336 | G199: 17.6 | H199: 0.19146 | I199: 2808.996155 | J199: 0.01759742647 | L199: 51.32132965 | M199: 0.02202434701 | N199: 52.46418757 | O199: 35.98081089 | P199: 0.01744438458 | Q199: 36.61398056
C200: 17.7 | D200: 0.2438114604 | E200: 4030.761868 | F200: 0.02240914158 | G200: 17.7 | H200: 0.19236 | I200: 2823.427185 | J200: 0.01768014706 | L200: 51.63057281 | M200: 0.0221617459 | N200: 52.78756963 | O200: 36.1656599 | P200: 0.01752567137 | Q200: 36.80507409
C201: 17.8 | D201: 0.2453397547 | E201: 4052.355964 | F201: 0.02254960981 | G201: 17.8 | H201: 0.19338 | I201: 2838.591725 | J201: 0.01777389706 | L201: 51.90717452 | M201: 0.02229912591 | N201: 53.07766105 | O201: 36.35990454 | P201: 0.01761778841 | Q201: 37.00616174
C202: 17.9 | D202: 0.2468559197 | E202: 4075.309541 | F202: 0.02268896321 | G202: 17.9 | H202: 0.19439 | I202: 2855.945245 | J202: 0.01786672794 | L202: 52.20118998 | M202: 0.02243539696 | N202: 53.38558086 | O202: 36.58218812 | P202: 0.01770899398 | Q202: 37.23579212
C203: 18 | D203: 0.2483114381 | E203: 4097.006416 | F203: 0.02282274247 | G203: 18 | H203: 0.19553 | I203: 2875.296635 | J203: 0.01797150735 | L203: 52.47910817 | M203: 0.02256619969 | N203: 53.67682534 | O203: 36.83006269 | P203: 0.01781192889 | Q203: 37.49195443
C204: 18.1 | D204: 0.2496092754 | E204: 4118.202013 | F204: 0.02294202899 | G204: 18.1 | H204: 0.19678 | I204: 2894.970635 | J204: 0.01808639706 | L204: 52.75060544 | M204: 0.02268281771 | N204: 53.96081135 | O204: 37.08206961 | P204: 0.01792478394 | Q204: 37.75275064
C205: 18.2 | D205: 0.250846466 | E205: 4135.532871 | F205: 0.02305574136 | G205: 18.2 | H205: 0.19792 | I205: 2913.720395 | J205: 0.01819117647 | L205: 52.97259874 | M205: 0.02279397362 | N205: 54.19392127 | O205: 37.32223781 | P205: 0.01802769664 | Q205: 38.00117323
C206: 18.3 | D206: 0.2520108807 | E206: 4151.221136 | F206: 0.02316276477 | G206: 18.3 | H206: 0.19918 | I206: 2932.705215 | J206: 0.01830698529 | L206: 53.17355184 | M206: 0.02289857966 | N206: 54.40519831 | O206: 37.56541694 | P206: 0.01814142993 | Q206: 38.25312647
C207: 18.4 | D207: 0.2533087179 | E207: 4169.883646 | F207: 0.02328205128 | G207: 18.4 | H207: 0.20031 | I207: 2949.996525 | J207: 0.01841084559 | L207: 53.41260245 | M207: 0.02301515892 | N207: 54.6561574 | O207: 37.78690366 | P207: 0.01824341784 | Q207: 38.48259251
... 2016 more rows
